Cogmind - Beta 13 @@@ ROGUE MODE // 2024.04.21 @ 22:02:58 Player: Red_Zig Result: Destroyed by G-34 Mercenary with Small Laser Performance ------------- Evolutions (1) 500 Regions Visited (3) 600 Robots Destroyed (79) 395 Value Destroyed (1874) 1874 Prototype IDs (6) 120 Alien Tech Used (0) 0 Bonus (155) 155 TOTAL SCORE: 3644 Bonus ------- High Alert Combat Kills 155 Cogmind --------- Core Integrity 0/400 Matter 163/300 Energy 188/200 System Corruption 0% Temperature Hot (231) Movement Treading (160) Location -9/Storage Parts ------- > --- POWER (1) -------- Cold Fusion Reactor > --- PROPULSION (2) --- Light Treads Light Treads > --- UTILITY (4) ------ Medium Storage Unit Signal Interpreter Hardened Light Armor Plating > --- WEAPON (2) ------- Flak Cannon Flak Cannon > --- INVENTORY (10) --- Propulsion Shielding Hacking Suite Drone Bay (2/2) Drone Bay (2/2) Heavy Assault Rifle Heavy Assault Rifle Improved Assault Rifle Flak Cannon Flak Cannon Grenade Launcher Peak State ------------ > --- POWER ------------ Cold Fusion Reactor > --- PROPULSION ------- Light Treads Light Treads > --- UTILITY ---------- Medium Storage Unit Signal Interpreter Drone Bay Drone Bay > --- WEAPON ----------- Flak Cannon Flak Cannon > --- INVENTORY -------- Propulsion Shielding Hacking Suite Drone Bay Drone Bay Heavy Assault Rifle Heavy Assault Rifle Improved Assault Rifle Flak Cannon Flak Cannon Grenade Launcher [Rating: 28] Favorites ----------- Power Light Ion Engine Engine Light Ion Engine Reactor Cold Fusion Reactor Propulsion Light Treads Treads Light Treads Leg Aluminum Leg Flight Unit Improved Flight Unit Utility Medium Storage Unit Device Heat Sink Storage Medium Storage Unit Processor Signal Interpreter Protection Propulsion Shielding Weapon Assault Rifle Ballistic Gun Assault Rifle Ballistic Cannon Flak Cannon Launcher Grenade Launcher Build | -11 -10 -9 -9 ------- Run | Yrd Mat Mat Sto Slots Evolved 2 | . . 2 . Power . | . . . . Propulsion . | . . . . Utility 2 | . . 2 . Weapon . | . . . . Parts Attached 57 | 7 7 31 12 Power 5 | 1 1 2 1 Engine 4 | 1 1 2 . Core . | . . . . Reactor 1 | . . . 1 Propulsion 12 | 3 1 7 1 Treads 7 | 1 . 5 1 Leg 4 | 2 1 1 . Wheel . | . . . . Hover . | . . . . Flight 1 | . . 1 . Utility 11 | 1 3 2 5 Device 4 | . 1 1 2 Storage 4 | 1 1 . 2 Processor 1 | . 1 . . Hackware . | . . . . Protection 2 | . . 1 1 Artifact . | . . . . Weapon 29 | 2 2 20 5 Energy Gun . | . . . . Energy Cannon . | . . . . Ballistic Gun 19 | 2 2 13 2 Ballistic Cannon 5 | . . 3 2 Launcher 5 | . . 4 1 Special Weapon . | . . . . Impact Weapon . | . . . . Slashing Weapon . | . . . . Piercing Weapon . | . . . . Special Melee Weapon . | . . . . Unidentified Prototypes 4 | . . 3 1 Parts Lost 9 | . . 8 1 Power 1 | . . 1 . Propulsion 1 | . . 1 . Utility 1 | . . . 1 Weapon 6 | . . 6 . Highest Loss Streak 4 | . . 4 1 To Critical Strikes . | . . . . Average Slot Usage (%) 87 | . 98 77 98 Engine 8 | . 14 7 1 Reactor 1 | . . . 9 Treads 11 | . . 13 22 Leg 12 | . 28 8 . Device 6 | . 7 4 11 Storage 12 | . 14 11 14 Processor 9 | . 4 11 11 Protection 1 | . . . 6 Ballistic Gun 15 | . 28 13 1 Ballistic Cannon 7 | . . 7 20 Naked Turns . | . . . . Heaviest Build 46 | 10 18 32 46 Greatest Support 40 | 20 20 40 40 Greatest Overweight (x) 1 | . . 1 1 Average Overweight (x) . | . . . . Largest Inventory Capacity 10 | 8 10 10 10 Average Capacity 9 | 6 9 10 10 Most Carried 10 | 6 10 10 10 Average Carried 9 | 3 8 9 9 Final Capacity 10 | 8 10 10 10 Final Carried 10 | 6 10 10 10 Class Distribution -------------------- 96% | Mutant 3% | Scavenger-Mutant Dominant Class ---------------- Mutant | -10/Materials Mutant | -9/Materials Mutant | -9/Storage Resources | -11 -10 -9 -9 ----------- Run | Yrd Mat Mat Sto Matter Collected 2114 | 236 389 989 500 Remotely . | . . . . Salvage Created 2167 | . 461 1254 452 Parts 148 | . 37 87 24 Haulers Intercepted 8 | . 1 4 3 Recyclers Shooed 3 | . . 2 1 Parts Field Recycled . | . . . . Retrieved Matter . | . . . . Parts Self-Destructed . | . . . . Prevented . | . . . . Kills | -11 -10 -9 -9 ------- Run | Yrd Mat Mat Sto Combat Hostiles Destroyed 54 | . 11 29 14 Guns 26 | . 11 15 . Cannons 19 | . . 7 12 AOE 9 | . . 7 2 Classes Destroyed 10 | . 5 5 . Worker 2 | . . 1 1 Builder 1 | . . 1 . Tunneler 1 | . . 1 . Hauler 8 | . 1 4 3 Recycler 3 | . . 3 . Operator 1 | . 1 . . Watcher 9 | . 3 5 1 Swarmer 16 | . 5 11 . Grunt 23 | . 6 10 7 Sentry 15 | . . 8 7 Best Kill Streak 9 | . 4 9 3 Combat Bots Only 6 | . 4 6 3 Max Kills in Single Turn 2 | . 1 2 2 Gunslinging 1 | . . 1 . Exploded 2 | . . 2 1 Melee . | . . . . Uniques/NPCs Destroyed . | . . . . Combat | -11 -10 -9 -9 -------- Run | Yrd Mat Mat Sto Hostile Shots Fired 283 | . 44 150 89 Missed 64 | . 12 35 17 Damage Taken 2612 | . 289 1338 985 Core 435 | . 34 292 109 Absorbed by Shields . | . . . . Core Remaining (%) 93 | 100 86 . . Volleys Fired 186 | . 43 96 47 Largest 2 | . 2 2 2 Hottest 88 | . 40 88 88 Shots Fired 358 | . 86 186 86 Gun 233 | . 86 141 6 Cannon 110 | . . 36 74 Launcher 15 | . . 9 6 Special . | . . . . Kinetic 343 | . 86 177 80 Thermal . | . . . . Explosive 15 | . . 9 6 Electromagnetic . | . . . . Robot Hit Streak 10 | . 6 9 10 Robot Miss Streak 9 | . 6 6 9 Penetration Max . | . . . . Secondary Targets 2 | . 1 1 . Max Gunslinging Chain 1 | . 1 1 . Shots Hit Robots 232 | . 47 118 67 Core Hits 180 | . 26 87 67 Critical Kills . | . . . . Critical Parts Destroyed . | . . . . Critical Strikes . | . . . . Melee Attacks . | . . . . Impact . | . . . . Slashing . | . . . . Piercing . | . . . . Sneak Attacks . | . . . . Combat Hostiles . | . . . . Follow-up Attacks . | . . . . Damage Inflicted 4650 | . 574 2360 1716 Guns 1726 | . 574 1077 75 Cannons 2003 | . . 635 1368 Explosions 915 | . . 642 273 Melee . | . . . . Ramming 6 | . . 6 . Kinetic 3729 | . 574 1712 1443 Thermal . | . . . . Explosive 915 | . . 642 273 Electromagnetic . | . . . . Impact . | . . . . Slashing . | . . . . Piercing . | . . . . Highest Corruption 1 | . 1 . . Average Corruption 1 | . 1 . . Corruption Purged . | . . . . Corruption Blocked . | . . . . Effects 8 | . 8 . . Message Errors 2 | . 2 . . Matter Fused 3 | . 3 . . Heat Flow Errors 2 | . 2 . . Energy Discharges 1 | . 1 . . Overload Shots . | . . . . Overflow Damage 58 | . . 58 . Projectiles . | . . . . Explosions 58 | . . 58 . Melee . | . . . . Knockbacks 39 | . . 13 26 Impact . | . . . . Kinetic 38 | . . 13 25 Secondary 1 | . . . 1 Self-Inflicted Damage 6 | . . 6 . Shots 1 | . . 1 . Rammed 3 | . . 3 . Targets Rammed 3 | . . 3 . Kicked . | . . . . Crushed . | . . . . Highest Temperature 216 | . 198 17 216 Average Temperature 46 | . 62 6 55 Received Heat Transfer 1020 | . 96 480 444 Effects 1 | . . . 1 Energy Bleed 1 | . . . 1 Siege Activations . | . . . . Robots Corrupted . | . . . . Combat Hostiles . | . . . . Parts Fried . | . . . . Impact Corruptions . | . . . . Robots Melted . | . . . . Combat Hostiles . | . . . . Parts Melted . | . . . . Heat Transferred . | . . . . Parts Sabotaged . | . . . . Parts Stolen . | . . . . Parts Stripped . | . . . . Power Chain Reactions . | . . . . Alert | -11 -10 -9 -9 ------- Run | Yrd Mat Mat Sto Peak Influence 621 | . 186 621 506 Initial 257 | . . 39 257 Average 278 | . 81 366 340 Maximum Alert Level 2 | . . 2 2 Low Security (%) 34 | 100 100 10 . Level 1 40 | . . 44 91 Level 2 25 | . . 45 8 Level 3 . | . . . . Level 4 . | . . . . Level 5 . | . . . . High Security . | . . . . Max Security . | . . . . Squads Dispatched 9 | . 2 3 4 Investigation 4 | . 1 2 1 Extermination . | . . . . Reinforcement 4 | . 1 1 2 Assault . | . . . . Garrison 1 | . . . 1 Intercept . | . . . . Searches Triggered . | . . . . Construction Impeded 1 | . . . 1 Haulers Reinforced . | . . . . Active Scanning Responses . | . . . . Cargo Convoy Interrupts . | . . . . Stealth | -11 -10 -9 -9 --------- Run | Yrd Mat Mat Sto Distress Signals 6 | . 2 4 . Communications Jammed . | . . . . Distress Signals . | . . . . Times Spotted 92 | . 22 49 21 Peak Tracking Total 6 | . 3 6 5 Tactical Retreats 6 | . 3 3 . Traps | -11 -10 -9 -9 ------- Run | Yrd Mat Mat Sto Traps Triggered 3 | . 2 . 1 Indirectly . | . . . . Trap Hack Attempts . | . . . . Triggered . | . . . . Disarmed . | . . . . Reprogrammed . | . . . . Reused . | . . . . Traps Extracted . | . . . . Installed . | . . . . Triggered . | . . . . Machines | -11 -10 -9 -9 ---------- Run | Yrd Mat Mat Sto Machines Disabled 1 | . . 1 . Max in Single Turn 1 | . . 1 . Machines Repaired . | . . . . Machines Dismantled . | . . . . Machines Sabotaged . | . . . . Overloaded Fab Kills . | . . . . Hacking | -11 -10 -9 -9 --------- Run | Yrd Mat Mat Sto Machines Accessed 14 | . 3 6 5 Terminals 12 | . 3 4 5 Fabricators . | . . . . Repair Stations . | . . . . Recycling Units . | . . . . Scanalyzers 2 | . . 2 . Garrison Access . | . . . . Total Hacks 15 | . 3 6 6 Successful 12 | . 2 6 4 Failed 3 | . 1 . 2 Catastrophic . | . . . . Database Lockouts . | . . . . Manual 14 | . 3 6 5 Terminals 13 | . 3 4 6 Fabricators . | . . . . Repair Stations . | . . . . Recycling Units . | . . . . Scanalyzers 2 | . . 2 . Garrison Access . | . . . . Terminal Hacks 3 | . . . 3 Open Door 3 | . . . 3 Fabricator Hacks . | . . . . Repair Station Hacks . | . . . . Recycling Unit Hacks . | . . . . Scanalyzer . | . . . . Garrison Access Hacks . | . . . . Unauthorized Hacks 9 | . 2 6 1 Terminals 7 | . 2 4 1 Botnet 7 | . 2 4 1 Fabricators . | . . . . Repair Stations . | . . . . Recycling Units . | . . . . Scanalyzers 2 | . . 2 . Extract 2 | . . 2 . Garrison Access . | . . . . Data Cores Recovered . | . . . . Used . | . . . . Hacking Detections 6 | . 2 2 2 Full Trace Events . | . . . . Feedback Events . | . . . . Feedback Blocked . | . . . . Robot Schematics Acquired . | . . . . Robots Built . | . . . . Authchips . | . . . . Time . | . . . . Total Robot Build Rating . | . . . . Part Schematics Acquired 14 | . . 14 . Parts Built . | . . . . Authchips . | . . . . Time . | . . . . Total Part Build Rating . | . . . . Parts Repaired . | . . . . Time . | . . . . Parts Recycled . | . . . . Recycled Matter . | . . . . Retrieved Matter . | . . . . Retrieved Components . | . . . . Parts Scanalyzed . | . . . . Part Schematics Acquired . | . . . . Parts Damaged . | . . . . Bothacking | -11 -10 -9 -9 ------------ Run | Yrd Mat Mat Sto Used RIF Installer . | . . . . Robots Hacked . | . . . . Non-combat . | . . . . Combat . | . . . . Robot Hacks Applied . | . . . . Relay Couplers Released . | . . . . Fabnet Peak Effective % . | . . . . Robots Rewired . | . . . . Allies Hacked . | . . . . Hacks Repelled . | . . . . Allies | -11 -10 -9 -9 -------- Run | Yrd Mat Mat Sto Total Allies . | . . . . Largest Group . | . . . . Highest-Rated Group . | . . . . Highest-Rated Ally . | . . . . Total Orders 1 | . . . 1 EXPLORE 1 | . . . 1 Ally Attacks . | . . . . Total Damage . | . . . . Kills . | . . . . Allies Corrupted . | . . . . Allies Melted . | . . . . Intel | -11 -10 -9 -9 ------- Run | Yrd Mat Mat Sto Robot Analysis Total . | . . . . Derelict Logs Recovered . | . . . . Drone Launches 4 | . . . 4 Drone Recoveries . | . . . . Exploration | -11 -10 -9 -9 ------------- Run | Yrd Mat Mat Sto Turns Passed 4121 | 71 1111 2173 766 Spaces Moved 1749 | 41 648 755 305 Core 4 | 4 . . . Treads 852 | 4 . 543 305 Legs 893 | 33 648 212 . Wheels . | . . . . Hover . | . . . . Flight . | . . . . Fastest Speed 50 | 50 120 120 160 Average Speed 144 | 117 120 149 187 Slowest Speed 240 | 160 120 190 240 Overloaded Moves . | . . . . Propulsion Burnouts . | . . . . Robots Hopped . | . . . . Cave-ins Triggered . | . . . . Exploration Rate (%) 60 | 4 89 64 83 Regions Visited 3 Branch Regions 1 Pre-discovered Areas . | . . . . Known Exits Taken 2 | . 1 1 . Unknown Exits Taken 1 | 1 . . . Scrap Searched . | . . . . Spaces Dug . | . . . . Terrain Destroyed 78 | . . 53 25 Melee . | . . . . Projectile . | . . . . AOE 78 | . . 53 25 Terrain Rammed . | . . . . Walls Destroyed . | . . . . Machines Disabled . | . . . . Actions | -11 -10 -9 -9 --------- Run | Yrd Mat Mat Sto Total 2975 | 61 895 1606 413 Wait 938 | 8 186 707 37 Move 1746 | 40 647 754 305 Hop . | . . . . Pick Up 18 | 5 5 6 2 Fast Attach 21 | 7 2 6 6 Attach 6 | . . 6 . Detach 2 | 1 . . 1 Swap 30 | . 5 19 6 Drop 25 | . 7 9 9 Fire 186 | . 43 96 47 Melee . | . . . . Ram . | . . . . Kick . | . . . . Crush 3 | . . 3 . Escape Stasis . | . . . . Rewire . | . . . . Trap . | . . . . Miscellaneous . | . . . . Route ------- -11/Scrapyard -10/Materials (discovered 4 exits: *Mat x2 / [*Min x2]) -9/Materials (discovered 3 exits: *Mat / *Min / *Sto) -9/Storage (discovered 1 exit: *Mat) History --------- Turn | Location | Event 9 | -11/Scrapyard | Discovered new exit (range 15) 72 | -11/Scrapyard | Entered Materials 135 | -10/Materials | Discovered new exit (range 8) 302 | -10/Materials | Discovered new exit (range 16) 306 | -10/Materials | Build established: Mutant 606 | -10/Materials | Discovered new exit (range 4) 893 | -10/Materials | Identified exit to Materials 1127 | -10/Materials | Discovered exit to Materials (range 6) 1183 | -10/Materials | Entered another Materials area 1183 | -9/Materials | Evolved 2 slots: Utility x2 1498 | -9/Materials | Discovered new exit (range 5) 1504 | -9/Materials | Identified exit to Materials 2278 | -9/Materials | Discovered new exit (range 14) 2381 | -9/Materials | Lost 4 parts (4w) 2498 | -9/Materials | Core integrity fell below 50% 2620 | -9/Materials | Identified exit to Mines 3301 | -9/Materials | Discovered new exit (range 6) 3354 | -9/Materials | Identified exit to Storage 3356 | -9/Materials | Entered Storage 3747 | -9/Storage | Discovered exit to Materials (range 15) 3786 | -9/Storage | Core integrity fell below 20% 4086 | -9/Storage | Garrison activated, responded to threat 4122 | -9/Storage | Destroyed by G-34 Mercenary with Small Laser Last Messages --------------- 04073_ Y-45 Defender destroyed. 04076_ Acquired 39 matter. 04084_ Triggered Alarm Trap. 04084_ An alarm sounds. 04084_ ALERT: Alarm triggered, dispatching investigation squad. 04086_ Y-45 Defender calls for garrison reinforcements. 04086_ ALERT: Activating Garrison Access S001. 04086_ U-05 Engineer knocked back. 04086_ Y-45 Defender destroyed. 04086_ ALERT: Construction progress impeded, dispatching reinforcements to local area. 04091_ Acquired 45 matter. 04102_ G-34 Mercenary knocked back. 04107_ Med. Matter Pod destroyed. 04114_ G-34 Mercenary knocked back. 04114_ G-34 Mercenary destroyed. 04120_ Overheating: Energy bleed (-40). 04120_ G-34 Mercenary knocked back. Map ----- +----------------------------------------------------+ | | | | | | | | | | | ?????????????????????????????????????????????????? | | ?????????????????????????????????????????????????? | | ?????????????????????????????????????????????????? | | ?????????????????????????????????????????????????? | | ?????????????????????????????????????????????????? | | ?????????????????????????????????????????????????? | | ?????????????????????????????????????????????????? | | ?????????????????????????????????????????????????? | | ?????????????????????????????????????????????????? | | ????????????????????# ???????????????????????????? | | ????????????????????# ???????????????????????????? | | ????????????????????# "??????????????????????????? | | ????????????????????? ?????????????????????????? | | ?????????????????????? ?????????????????????????? | | ??????????????????????? ?????????#####??????????? | | ??????????????????????##/######## #??????????? | | ??????????????????????# #??????????? | | ???????????????????#### #??????????? | | ???????????????????# [!* #??????????? | | ?????######????????# ##Y##/##### #??????????? | | ###### #????????# ##!@g ## #???????????? | | # #????????# ## ## #???????????? | | """ # #????????# ## o ## #???????????? | | """ + #????????# "# ## #???????????? | | """ # #????????# T# g ## /???????????? | | # ##???????# "# ## #???????????? | | # # ! ######### ## ## #???????????? | | ## ### #= ! ## ## #???????????? | | ?###?# # * ##### ## ## #???????????? | | ????##+##+##??#" ##+######### #???????????? | | ??### #??#T ## #???????# ##########??? | | ??#"" #??#" #???????# # #??? | | ??#"T """ #??## +???????# %# !#??? | | ??#"" """ #???# #???????# %# #??? | | ??### """ ##### ######### + #??? | | ????# + # #### | | ??########## #### ##### #= + | | ??# * # #???/#???# # ### | | ??# + #??? ???# % # ! #?# | | ??# # #???"""??# # !! #?# | | ??# ]! ## #???""???# % #############+#?# | | ??# ! ## #?????? + #???????????# #?# | | ??# ! ## ######???? # ####?????####+### | | ??###+#### #?????? =?# #?????# ! # | | ??? +[ *#?????#/###?## #?????# ]# | +----------------------------------------------------+ Best States ------------- Heat Dissipation 39 Energy Generation 17 Energy Capacity 280 Matter Stores 300 Matter Capacity 400 Sight Range 16 Terrain Scan Density 10 Armor Coverage 150 Propulsion Shielding 33 Evasion (%) 55 Recoil Reduction 2 Item Schematics ----------------- Lgt. EM Pulse Cannon | -9/Materials | Extracted Particle Cannon | -9/Materials | Extracted Terrain Scan Processor | -9/Materials | Extracted VTOL Module | -9/Materials | Extracted Datajack | -9/Materials | Extracted Imp. EM Shotgun | -9/Materials | Extracted Particle Gun | -9/Materials | Extracted Hover Unit | -9/Materials | Extracted Imp. Aluminum Leg | -9/Materials | Extracted Tractor Beam | -9/Materials | Extracted Lgt. Assault Rifle | -9/Materials | Extracted EM Shotgun | -9/Materials | Extracted Imp. Ion Engine | -9/Materials | Extracted Imp. Medium Laser | -9/Materials | Extracted Robot Schematics ------------------ None Fabricated ------------ Nothing Alien Tech Used ----------------- None Achievements -------------- None Challenges ------------ None Game ------ Seed RecoilExoskeletonRegenerator Manual? 0 Play Time 00:40:04 Cumulative 41.3 hours Start 2024.04.21 @ 21:04:09 End 2024.04.21 @ 22:02:58 Sessions 1 Manual Loads 0 Difficulty Rogue Special Mode None Game No. 39 Rogue 27 Adventurer 12 Explorer 0 Win Type - Total 0 Types 0/0/0/0/0/0/0/0/0 Lore% 22 Gallery% 36 Achievement% 29 Wizard Run 0 Options --------- Layout 2 ASCII 0 Keyboard 0 Movement Mouse Keybinds 0 Fullscreen 1 Font 24/Smallcaps Map View 50x44 Zoom Use 10% Tactical HUD 1 Map Filters NONE Filters NONE Steam 1 RUN: e9ef7135-0ea6-4c60-8af7-fef66aabcb93